Cogmind - Beta 15 @@@ ROGUE MODE // 2025.07.31 @ 17:35:03 Player: winnking222 Result: Destroyed by P9-73N(R) with Subdweller Laser Performance ------------- Evolutions (0) 0 Regions Visited (3) 600 Robots Destroyed (26) 130 Value Destroyed (757) 757 Prototype IDs (13) 260 Alien Tech Used (0) 0 Bonus (37) 37 TOTAL SCORE: 1784 Bonus ------- Follower Combat Kills 37 Cogmind --------- Core Integrity 0/250 Matter 265/300 Energy 200/200 System Corruption 0% Temperature Cool (6) Movement Treading (160) Location -10/Subcaves Parts ------- > --- POWER (1) -------- Subdweller Power Source > --- PROPULSION (2) --- Light Treads Light Treads > --- UTILITY (2) ------ Large Storage Unit Hardened Light Armor Plating > --- WEAPON (2) ------- Subdweller Machine Gun Heavy Battle Rifle > --- INVENTORY (15) --- Light Treads Light Treads Wheel Seismic Detector Hardened Light Armor Plating Hardened Light Armor Plating Gun Armor Scrap Shield Subdweller Laser Subdweller Beam Cannon Makeshift Spear Explosive Trap Explosive Trap Explosive Trap Peak State ------------ > --- POWER ------------ Subdweller Power Source > --- PROPULSION ------- Light Treads Light Treads > --- UTILITY ---------- Large Storage Unit Hardened Light Armor Plating > --- WEAPON ----------- Subdweller Beam Cannon Heavy Battle Rifle > --- INVENTORY -------- Light Treads Light Treads Wheel Seismic Detector Hardened Light Armor Plating Hardened Light Armor Plating Gun Armor Scrap Shield Beam Rifle Subdweller Laser Makeshift Spear Explosive Trap Explosive Trap Explosive Trap [Rating: 16] Favorites ----------- Power Subdweller Power Source Engine Subdweller Power Source Propulsion Light Treads Treads Light Treads Utility Large Storage Unit Device Seismic Detector Storage Large Storage Unit Protection Hardened Light Armor Plating Weapon Beam Rifle Energy Gun Beam Rifle Energy Cannon Subdweller Beam Cannon Ballistic Gun Assault Rifle Ballistic Cannon Light Cannon Build | -11 -10 -10 -10 ------- Run | Yrd Mat Min Sub Slots Evolved . | . . . . Power . | . . . . Propulsion . | . . . . Utility . | . . . . Weapon . | . . . . Parts Attached 29 | 7 7 3 12 Power 6 | 1 1 1 3 Engine 6 | 1 1 1 3 Core . | . . . . Reactor . | . . . . Propulsion 5 | 2 2 . 1 Treads 5 | 2 2 . 1 Leg . | . . . . Wheel . | . . . . Hover . | . . . . Flight . | . . . . Utility 6 | 2 1 1 2 Device 2 | 1 . 1 . Storage 2 | 1 1 . . Processor . | . . . . Hackware . | . . . . Protection 2 | . . . 2 Artifact . | . . . . Weapon 12 | 2 3 1 6 Energy Gun 3 | . 2 1 . Energy Cannon 2 | . . . 2 Ballistic Gun 6 | 2 . . 4 Ballistic Cannon 1 | . 1 . . Launcher . | . . . . Special Weapon . | . . . . Impact Weapon . | . . . . Slashing Weapon . | . . . . Piercing Weapon . | . . . . Special Melee Weapon . | . . . . Unidentified Prototypes . | . . . . Parts Lost 1 | . . . 1 Power 1 | . . . 1 Propulsion . | . . . . Utility . | . . . . Weapon . | . . . . Highest Loss Streak 1 | . . . 1 To Critical Strikes . | . . . . Average Backups 10 | 3 7 13 11 Power . | . 1 . . Propulsion 3 | 1 2 4 3 Utility 4 | . 1 4 4 Weapon 2 | . 2 4 2 Tool/Special . | . . . . Unused Backups 13 | . . 1 12 Power . | . . . . Propulsion 3 | . . . 3 Utility 4 | . . . 4 Weapon 6 | . . 1 5 Tool/Special . | . . . . Average Slot Usage (%) 99 | . 100 100 99 Engine 13 | . 14 14 13 Treads 28 | . 28 28 28 Device 9 | . 14 14 7 Storage 14 | . 14 14 14 Protection 4 | . . . 6 Energy Gun 14 | . 10 22 12 Energy Cannon 7 | . . . 11 Ballistic Gun 5 | . 16 5 3 Peak Build Rating 16 | 7 10 11 16 Average Rating 11 | 5 7 10 13 On Entrance 7 | . 7 10 11 Naked Turns . | . . . . Heaviest Build 42 | 13 31 31 42 Greatest Support 40 | 40 40 40 40 Greatest Overweight (x) 2 | 2 . . 1 Average Overweight (x) . | . . . . Largest Inventory Capacity 15 | 8 15 15 15 Average Capacity 14 | 7 9 15 15 Most Carried 15 | 5 15 15 15 Average Carried 13 | 3 7 14 14 Final Capacity 15 | 8 15 15 15 Final Carried 15 | 4 15 15 15 Class Distribution -------------------- 100% | Mutant Dominant Class ---------------- Mutant | -10/Materials Mutant | -10/Mines Mutant | -10/Subcaves Resources | -11 -10 -10 -10 ----------- Run | Yrd Mat Min Sub Matter Collected 909 | 336 216 65 292 Remotely . | . . . . Salvage Created 833 | 137 247 33 416 Parts 49 | 12 11 2 24 Haulers Intercepted . | . . . . Recyclers Shooed . | . . . . Parts Field Recycled . | . . . . Retrieved Matter . | . . . . Parts Self-Destructed 12 | . . . 12 Prevented . | . . . . Kills | -11 -10 -10 -10 ------- Run | Yrd Mat Min Sub Combat Hostiles Destroyed 19 | . 6 2 11 Guns 12 | . 4 2 6 Cannons 7 | . 2 . 5 Classes Destroyed 6 | 2 2 1 1 Tunneler 5 | 5 . . . Recycler 1 | 1 . . . Watcher 1 | . 1 . . Swarmer 2 | . . 2 . Grunt 6 | . 6 . . Subdweller 11 | . . . 11 Best Kill Streak 3 | 3 3 2 1 Combat Bots Only 3 | . 3 2 1 Max Kills in Single Turn 1 | 1 1 1 1 Gunslinging . | . . . . Exploded . | . . . . Melee . | . . . . Uniques/NPCs Destroyed . | . . . . Combat | -11 -10 -10 -10 -------- Run | Yrd Mat Min Sub Hostile Shots Fired 107 | . 47 8 52 Missed 28 | . 10 1 17 Hits 79 | . 37 7 35 Projectile 79 | . 37 7 35 Critical Strikes 2 | . 2 . . Damage Taken 1267 | . 477 54 736 Core 264 | . 91 10 163 Absorbed by Shields . | . . . . Core Remaining (%) 100 | 100 . . . Volleys Fired 121 | 11 32 3 75 Largest 2 | 2 2 2 2 Hottest 136 | 40 76 76 136 Shots Fired 234 | 22 64 6 142 Gun 183 | 22 53 6 102 Cannon 51 | . 11 . 40 Launcher . | . . . . Special . | . . . . Kinetic 141 | 22 57 3 59 Thermal 93 | . 7 3 83 Explosive . | . . . . Electromagnetic . | . . . . Robot Hit Streak 17 | 7 15 1 17 Robot Miss Streak 6 | 3 4 6 3 Penetration Max . | . . . . Secondary Targets 1 | . . . 1 Max Gunslinging Chain 1 | . . . 1 Shots Hit Robots 121 | 13 45 2 61 Core Hits 46 | 7 16 2 21 Critical Kills . | . . . . Critical Parts Destroyed . | . . . . Critical Strikes 5 | . 1 . 4 Burn 3 | . . . 3 Destroy 1 | . . . 1 Blast 1 | . 1 . . Melee Attacks . | . . . . Impact . | . . . . Slashing . | . . . . Piercing . | . . . . Sneak Attacks . | . . . . Combat Hostiles . | . . . . Follow-up Attacks . | . . . . Damage Inflicted 2027 | 158 628 38 1203 Guns 1501 | 158 491 38 814 Cannons 526 | . 137 . 389 Explosions . | . . . . Melee . | . . . . Ramming . | . . . . Kinetic 1355 | 158 563 24 610 Thermal 672 | . 65 14 593 Explosive . | . . . . Electromagnetic . | . . . . Impact . | . . . . Slashing . | . . . . Piercing . | . . . . Highest Corruption . | . . . . Average Corruption . | . . . . Corruption Purged . | . . . . Corruption Blocked . | . . . . Overload Shots . | . . . . Overflow Damage . | . . . . Projectiles . | . . . . Explosions . | . . . . Melee . | . . . . Knockbacks 2 | . 2 . . Impact . | . . . . Kinetic 2 | . 2 . . Secondary . | . . . . Self-Inflicted Damage . | . . . . Shots . | . . . . Rammed . | . . . . Targets Rammed . | . . . . Kicked . | . . . . Crushed . | . . . . Highest Temperature 72 | . 66 45 72 Average Temperature 19 | . 19 23 18 Received Heat Transfer 387 | . 303 . 84 Siege Activations . | . . . . Martial Activations . | . . . . Shielding Activations . | . . . . Robots Disrupted . | . . . . Combat Hostiles . | . . . . Robots Corrupted . | . . . . Combat Hostiles . | . . . . Parts Fried . | . . . . Impact Corruptions . | . . . . Robots Melted . | . . . . Combat Hostiles . | . . . . Parts Melted 3 | . . . 3 Heat Transferred 1480 | . 185 37 1258 Parts Sabotaged . | . . . . Parts Stolen . | . . . . Parts Stripped . | . . . . Power Chain Reactions . | . . . . Alert | -11 -10 -10 -10 ------- Run | Yrd Mat Min Sub Maximum Alert Level . | . . . . Low Security (%) 100 | 100 100 100 . Level 1 . | . . . . Level 2 . | . . . . Level 3 . | . . . . Level 4 . | . . . . Level 5 . | . . . . High Security . | . . . . Max Security . | . . . . Peak Influence 115 | 10 115 42 . Initial . | . . . . Average 12 | 1 34 2 . Influence Increases 274 | 30 172 72 . Destroy 0b10 Robot/C 180 | . 120 60 . Destroy 0b10 Robot/NC 35 | 30 5 . . Destroy Leader 42 | . 32 10 . Allied During Kill 2 | . . 2 . Disable Machine 15 | . 15 . . Influence Decreases 274 | 30 172 72 . Time Decay 254 | 30 172 52 . Lost Ally 20 | . . 20 . Squads Dispatched 2 | . 2 . . Investigation 1 | . 1 . . Extermination . | . . . . Reinforcement 1 | . 1 . . Assault . | . . . . Garrison . | . . . . Intercept . | . . . . Searches Triggered . | . . . . Construction Impeded . | . . . . Haulers Reinforced . | . . . . Active Scanning Responses . | . . . . Cargo Convoy Interrupts . | . . . . Stealth | -11 -10 -10 -10 --------- Run | Yrd Mat Min Sub Distress Signals . | . . . . Communications Jammed . | . . . . Distress Signals . | . . . . Times Spotted 26 | . 9 3 14 Peak Tracking Total 4 | . 4 3 3 Tactical Retreats . | . . . . Traps | -11 -10 -10 -10 ------- Run | Yrd Mat Min Sub Traps Triggered . | . . . . Indirectly . | . . . . Trap Hack Attempts . | . . . . Triggered . | . . . . Disarmed . | . . . . Reprogrammed . | . . . . Reused . | . . . . Traps Extracted . | . . . . Installed . | . . . . Triggered . | . . . . Most Traps Carried 3 | . . 3 3 Machines | -11 -10 -10 -10 ---------- Run | Yrd Mat Min Sub Machines Disabled 2 | . 1 . 1 Max in Single Turn 1 | . 1 . 1 Machines Repaired . | . . . . Machines Dismantled . | . . . . Machines Sabotaged . | . . . . Overloaded Fab Kills . | . . . . Hacking | -11 -10 -10 -10 --------- Run | Yrd Mat Min Sub Machines Accessed 3 | . 1 . 2 Terminals 1 | . 1 . . Fabricators . | . . . . Repair Stations . | . . . . Recycling Units . | . . . . Scanalyzers . | . . . . Garrison Access . | . . . . Total Hacks 17 | . 3 . 14 Successful 16 | . 2 . 14 Failed 1 | . 1 . . Catastrophic . | . . . . Database Lockouts . | . . . . Manual . | . . . . Terminals 3 | . 3 . . Fabricators . | . . . . Repair Stations . | . . . . Recycling Units . | . . . . Scanalyzers . | . . . . Garrison Access . | . . . . Terminal Hacks 16 | . 2 . 14 Record 13 | . . . 13 Prototype ID Bank 1 | . 1 . . Zone Layout 1 | . 1 . . Proto ID Catalog 1 | . . . 1 Fabricator Hacks . | . . . . Repair Station Hacks . | . . . . Recycling Unit Hacks . | . . . . Scanalyzer . | . . . . Garrison Access Hacks . | . . . . Unauthorized Hacks . | . . . . Terminals . | . . . . Fabricators . | . . . . Repair Stations . | . . . . Recycling Units . | . . . . Scanalyzers . | . . . . Garrison Access . | . . . . Data Cores Recovered . | . . . . Used . | . . . . Hacking Detections 1 | . 1 . . Full Trace Events 1 | . 1 . . Feedback Events . | . . . . Feedback Blocked . | . . . . Robot Schematics Acquired . | . . . . Robots Built . | . . . . Authchips . | . . . . Time . | . . . . Total Robot Build Rating . | . . . . Part Schematics Acquired . | . . . . Parts Built . | . . . . Authchips . | . . . . Time . | . . . . Total Part Build Rating . | . . . . Parts Repaired . | . . . . Time . | . . . . Parts Recycled . | . . . . Recycled Matter . | . . . . Retrieved Matter . | . . . . Retrieved Components . | . . . . Parts Scanalyzed . | . . . . Part Schematics Acquired . | . . . . Parts Damaged . | . . . . Bothacking | -11 -10 -10 -10 ------------ Run | Yrd Mat Min Sub Used RIF Installer . | . . . . Robots Hacked . | . . . . Non-combat . | . . . . Combat . | . . . . Robot Hacks Applied . | . . . . Relay Couplers Released . | . . . . Fabnet Peak Effective % . | . . . . Robots Rewired . | . . . . Allies Hacked . | . . . . Hacks Repelled . | . . . . Allies | -11 -10 -10 -10 -------- Run | Yrd Mat Min Sub Total Allies 4 | . . 4 . Largest Group 3 | . . 3 3 Highest-Rated Group 40 | . . 40 40 Highest-Rated Ally 31 | . . 31 16 Total Orders . | . . . . Ally Attacks 14 | . . 3 11 Total Damage 160 | . . 41 119 Kills 3 | . . 1 2 Allies Corrupted . | . . . . Allies Melted . | . . . . Intel | -11 -10 -10 -10 ------- Run | Yrd Mat Min Sub Active Infowar (turns) 3131 | 58 550 994 1529 Seismic 3131 | 58 550 994 1529 Robot Analysis Total . | . . . . Derelict Logs Recovered 2 | . . 1 1 Drone Launches . | . . . . Drone Recoveries . | . . . . Exploration | -11 -10 -10 -10 ------------- Run | Yrd Mat Min Sub Turns Passed 4768 | 186 550 994 3038 Spaces Moved 2426 | 99 262 562 1503 Core 22 | 22 . . . Treads 2404 | 77 262 562 1503 Legs . | . . . . Wheels . | . . . . Hover . | . . . . Flight . | . . . . Fastest Speed 50 | 50 160 160 160 Average Speed 173 | 138 160 160 182 Slowest Speed 240 | 160 160 160 240 Overloaded Moves . | . . . . Propulsion Burnouts . | . . . . Robots Hopped . | . . . . Potential Cave-ins . | . . . . Cave-ins Triggered . | . . . . Exploration Rate (%) 60 | 6 55 99 83 Regions Visited 3 Branch Regions 2 Pre-discovered Areas 2 | . . 1 1 Known Exits Taken . | . . . . Unknown Exits Taken 3 | 1 1 1 . Scrap Searched 4 | . . 1 3 Spaces Dug 1 | . . . 1 Terrain Destroyed 5 | . . . 5 Melee . | . . . . Projectile 5 | . . . 5 AOE . | . . . . Terrain Rammed . | . . . . Walls Destroyed . | . . . . Machines Disabled . | . . . . Actions | -11 -10 -10 -10 --------- Run | Yrd Mat Min Sub Total 2766 | 124 332 652 1658 Wait 126 | . 8 75 43 Move 2423 | 98 261 561 1503 Hop . | . . . . Pick Up 35 | 8 16 5 6 Fast Attach 6 | 3 . . 3 Attach 5 | 4 . 1 . Detach . | . . . . Swap 24 | . 8 2 14 Drop 26 | . 7 5 14 Fire 121 | 11 32 3 75 Melee . | . . . . Ram . | . . . . Kick . | . . . . Crush . | . . . . Escape Stasis . | . . . . Rewire . | . . . . Trap . | . . . . Miscellaneous . | . . . . Route ------- -11/Scrapyard -10/Materials (discovered 4 exits: [*Mat x2] / [*Min x2]) -10/Mines (discovered 3 exits: [*Mat x2] / *Sub) -10/Subcaves (discovered 1 exit: [*Mat]) History --------- Turn | Location | Event 8 | -11/Scrapyard | Discovered new exit (range 14) 187 | -11/Scrapyard | Entered Materials 328 | -10/Materials | Build established: Mutant 468 | -10/Materials | Discovered new exit (range 16) 563 | -10/Materials | Discovered new exit (range 15) 636 | -10/Materials | Discovered new exit (range 11) 713 | -10/Materials | Discovered new exit (range 16) 737 | -10/Materials | Entered Mines 809 | -10/Mines | A weapon hastily lodged in a ceiling crevice suddenly fell to the ground 841 | -10/Mines | Received a Mining Laser from a helpful Derelict 926 | -10/Mines | Learned location of Storage (-7) 969 | -10/Mines | Discovered new exit (range 7) 1095 | -10/Mines | Found a hidden stash of uninstalled traps 1287 | -10/Mines | Assisted by bots powering up and referring to "LRC-V3" 1459 | -10/Mines | Discovered new exit (range 10) 1558 | -10/Mines | Discovered new exit (range 13) 1731 | -10/Mines | Entered Subcaves 1731 | -10/Subcaves | Accompanied by 3 allies 1732 | -10/Subcaves | Approached by a straggling Scientist 1809 | -10/Subcaves | Shifting Twisted Machinery released Riot Gun 1813 | -10/Subcaves | Shifting Twisted Machinery released Sub. Beam Cannon 1914 | -10/Subcaves | Visited 4L-MR0's lab 1934 | -10/Subcaves | Found Gun Armor 2258 | -10/Subcaves | Core integrity fell below 50% 2293 | -10/Subcaves | Lost 3 allies 2438 | -10/Subcaves | Learned location of Zion (-6) 2438 | -10/Subcaves | Met a Zionite searching for "candidates" 2909 | -10/Subcaves | A swath of the cavern ceiling suddenly collapsed 3319 | -10/Subcaves | Core integrity fell below 20% 3872 | -10/Subcaves | Discovered new exit (range 7) 4376 | -10/Subcaves | Visited Clippyterm 4381 | -10/Subcaves | Learned Factory emergency access door positions 4381 | -10/Subcaves | Learned Factory fabricator intel 4751 | -10/Subcaves | A Subdweller sparked back to life 4751 | -10/Subcaves | A Subdweller sparked back to life 4769 | -10/Subcaves | Destroyed by P9-73N(R) with Subdweller Laser Last Messages --------------- 04436_ 5X-HLP(R) suffers critical hit (Destroy). 04445_ 5X-HLP(R) destroyed. 04448_ Acquired 22 matter. 04457_ Acquired 29 matter. 04468_ Sub. Power Source shoots sparks and powers down. 04473_ Dropped Broken Sub. Power Source. 04509_ Subatomizers dissect the Sub. Machine Gun. 04529_ BZ-VM6(R) destroyed. 04533_ Subatomizers dissect the Sub. Machine Gun. 04533_ Acquired 27 matter. 04536_ Dropped Sub. Machine Gun. 04613_ Acquired 32 matter. 04663_ Acquired 9 matter. 04677_ Acquired 12 matter. 04685_ Acquired 9 matter. 04751_ TI-FLT(R) creaks and sparks as it begins to move. 04751_ P9-73N(R) creaks and sparks as it begins to move. 04754_ TI-FLT(R) destroyed. 04754_ Switching to secondary target: P9-73N(R). 04765_ P9-73N(R) affixes Scrap Shield Fragment to Scrap Shield. Map ----- +----------------------------------------------------+ | ???# ####### # ##????# ## #####????## | | ???## ##?????# ## #?????# ## ##????# | | ????## #??????# #### ##???## ## ##???? | | ?????# #?????# #??# # ##### ### ##??? | | ?????# #?????# ##??### #?#### # #??? | | ?????#####?????####?????#### ####???# ###??? | | ???????????????????????????#####??????## ###????? | | ??????????????????????????????????????# #?????? | | ??????????????????????????????????????### "#?????? | | ????????????????????????????????????????## #?????? | | ?????????????????????????????????????????# #?????? | | ????????????????????????????????????????## #?????? | | ????????????????????????????????????????# ##????? | | ????????????????????????????????????????### ##???? | | ??????????????????????????????????????????## ###?? | | ???????????????????????????????????????????## #?? | | ???????????????????"????????????????????????## #?? | | ??????????????????? "#???????????????????????# #?? | | ????????????????#< ???????????????????????#%#?? | | ????????????????# ???????????????????????#[#?? | | ????????????????# <<&"#??????????????????????# ### | | ???????????????## %! #??????????????????????# # | | ??????????????## % &R ###????????????????????## | | ????????###### ] R ##???????????????????### | | #???#### ? # ########??????????????# | | #??## % ????? ## @ ## # ###???????????# | | #### #????????# ### % #???????????## | | ###???????# ###### # #????????????## | | ## #?????### ###### ####?????????????# | | ### ##???## # ### ###???????????????? | | ## ##### #%####????????????? | | ## ### ##???????????? | | ?## % ####?### %#???????????? | | ??####### ##########??????### ## #???????????? | | ????????####?????????????????#########???????????? | | ?????????????????????????????????????????????????? | | ?????????????????????????????????????????????????? | | ?????????????????????????????????????????????????? | | ?????????????????????????????????????????????????? | | ?????????????????????????????????????????????????? | | ?????????????????????????????????????????????????? | | ?????????????????????????????????????????????????? | | ?????????????????????????????????????????????????? | | ?????????????????????????????????????????????????? | | ?????????????????????????????????????????????????? | | ?????????????????????????????????????????????????? | | ?????????????????????????????????????????????????? | | ?????????????????????????????????????????????????? | | ?????????????????????????????????????????????????? | | | +----------------------------------------------------+ Best States ------------- Heat Dissipation 25 Energy Generation 15 Energy Capacity 250 Matter Stores 300 Matter Capacity 300 Sight Range 16 Terrain Scan Density 10 Armor Coverage 150 Evasion (%) 40 Recoil Reduction 2 Item Schematics ----------------- None Robot Schematics ------------------ None Fabricated ------------ Nothing Repaired ---------- Nothing Alien Tech Used ----------------- None Achievements -------------- None Challenges ------------ None Game ------ Seed MiniCentriumExtractor Manual? 0 Play Time 00:18:05 Cumulative 112.0 hours Start 2025.07.31 @ 17:17:21 End 2025.07.31 @ 17:35:03 Sessions 1 Manual Loads 0 Difficulty Rogue Special Mode None Game No. 172 Rogue 172 Adventurer 0 Explorer 0 Win Type - Total 1 Types 1/0/0/0/0/0/0/0/0/0 Lore% 67 Gallery% 58 Achievement% 50 Wizard Run 0 Options --------- Layout 0 ASCII 0 Keyboard 0 Movement Mouse Keybinds 0 Fullscreen 1 Font 16/SmallcapsGlow Map View 75x55 Zoom Use 0% Tactical HUD 1 Map Filters NONE Filters NONE Steam 1 RUN: 41a8f949-a9d9-4b91-a072-3af940357e83